[Event "*** Titled Tuesday Blitz"]
[Site "Chess.com"]
[Date "2020.05.19"]
[Round "6"]
[White "ChronicUnhappiness"]
[Black "OhanyanEminChess"]
[Result "1-0"]
[WhiteElo "2293"]
[BlackElo "2425"]
[TimeControl "180+1"]
[EndTime "13:10:16 PDT"]
[Termination "ChronicUnhappiness won by resignation"]

1. c4 {[%clk 0:03:00.9]} 1... Nf6 {[%clk 0:02:59.5]} 2. g3 {[%clk 0:03:00]} 2...
g6 {[%clk 0:02:59.7]} 3. Bg2 {[%clk 0:03:00.1]} 3... Bg7 {[%clk 0:03:00.1]} 4.
Nf3 {[%clk 0:02:59.6]} 4... O-O {[%clk 0:03:00.6]} 5. O-O {[%clk 0:02:59.7]}
5... d6 {[%clk 0:03:01]} 6. Nc3 {[%clk 0:02:57.7]} 6... Nbd7 {[%clk 0:02:58.5]}
7. b3 {[%clk 0:02:56.5]} 7... c5 {[%clk 0:02:56.7]} 8. Bb2 {[%clk 0:02:56]} 8...
Rb8 {[%clk 0:02:55.5]} 9. d4 {[%clk 0:02:39.6]} 9... a6 {[%clk 0:02:51]} 10.
dxc5 {[%clk 0:02:29.1]} 10... Nxc5 {[%clk 0:02:51.9]} 11. Nd4 {[%clk 0:02:16]}
11... Ne6 {[%clk 0:02:47.8]} 12. Nd5 {[%clk 0:01:50.9]} 12... Nxd5 {[%clk
0:02:38]} 13. cxd5 {[%clk 0:01:48.2]} 13... Nxd4 {[%clk 0:02:36.8]} 14. Bxd4
{[%clk 0:01:49.1]} 14... Bxd4 {[%clk 0:02:31]} 15. Qxd4 {[%clk 0:01:50]} 15...
Bd7 {[%clk 0:02:31.2]} 16. Rfc1 {[%clk 0:01:48.6]} 16... Rc8 {[%clk 0:02:30.8]}
17. h4 {[%clk 0:01:45]} 17... h5 {[%clk 0:02:26.7]} 18. b4 {[%clk 0:01:12.3]}
18... a5 {[%clk 0:02:21.2]} 19. a3 {[%clk 0:01:10.1]} 19... Rxc1+ {[%clk
0:02:16.8]} 20. Rxc1 {[%clk 0:01:08.8]} 20... axb4 {[%clk 0:02:17.5]} 21. Qxb4
{[%clk 0:01:03.4]} 21... b5 {[%clk 0:02:11.6]} 22. e4 {[%clk 0:00:56]} 22... Qb8
{[%clk 0:02:09.1]} 23. e5 {[%clk 0:00:51.3]} 23... Qb6 {[%clk 0:01:22.8]} 24. a4
{[%clk 0:00:41.1]} 24... Ra8 {[%clk 0:01:10.5]} 25. e6 {[%clk 0:00:28.7]} 25...
Be8 {[%clk 0:01:05.4]} 26. exf7+ {[%clk 0:00:24.3]} 26... Kxf7 {[%clk
0:01:06.3]} 27. axb5 {[%clk 0:00:16.4]} 27... Qxb5 {[%clk 0:01:03.9]} 28. Qf4+
{[%clk 0:00:16.1]} 28... Kg8 {[%clk 0:01:01.6]} 29. Be4 {[%clk 0:00:16]} 29...
Qb2 {[%clk 0:00:56.8]} 30. Qg5 {[%clk 0:00:14.7]} 30... Ra1 {[%clk 0:00:46.5]}
31. Rxa1 {[%clk 0:00:12.6]} 31... Qxa1+ {[%clk 0:00:47.4]} 32. Kg2 {[%clk
0:00:12.7]} 32... Qf6 {[%clk 0:00:41.5]} 33. Qxf6 {[%clk 0:00:12.4]} 33... exf6
{[%clk 0:00:42.4]} 34. f4 {[%clk 0:00:12.9]} 34... Kg7 {[%clk 0:00:41.7]} 35.
Kf3 {[%clk 0:00:13]} 35... Bd7 {[%clk 0:00:40.7]} 36. Ke3 {[%clk 0:00:13.1]}
36... Be8 {[%clk 0:00:34.3]} 37. Kd4 {[%clk 0:00:13.1]} 37... Kf8 {[%clk
0:00:34.7]} 38. Bd3 {[%clk 0:00:13.3]} 38... Ke7 {[%clk 0:00:34.6]} 39. Kc4
{[%clk 0:00:14.2]} 39... Kd8 {[%clk 0:00:33.4]} 40. Kb4 {[%clk 0:00:13.8]} 40...
Kc7 {[%clk 0:00:31.8]} 41. Ka5 {[%clk 0:00:14.1]} 41... Bf7 {[%clk 0:00:32.1]}
42. Kb5 {[%clk 0:00:12.5]} 42... Bxd5 {[%clk 0:00:23.8]} 43. Bxg6 {[%clk
0:00:11.4]} 43... Bf3 {[%clk 0:00:24.3]} 44. Kc4 {[%clk 0:00:09.9]} 44... Kd7
{[%clk 0:00:17.8]} 45. Kd4 {[%clk 0:00:10.8]} 45... Ke6 {[%clk 0:00:15.7]} 46.
Be4 {[%clk 0:00:10.2]} 46... Bg4 {[%clk 0:00:14.1]} 47. Bd5+ {[%clk 0:00:09.1]}
47... Ke7 {[%clk 0:00:14.2]} 48. Ke4 {[%clk 0:00:08.1]} 48... Kd7 {[%clk
0:00:13.4]} 49. f5 {[%clk 0:00:07.6]} 49... Kc7 {[%clk 0:00:13.5]} 50. Kf4
{[%clk 0:00:07.6]} 50... Kd7 {[%clk 0:00:11.5]} 51. Bf3 {[%clk 0:00:07.5]} 51...
Bxf3 {[%clk 0:00:09.5]} 52. Kxf3 {[%clk 0:00:08.4]} 52... d5 {[%clk 0:00:09]}
53. g4 {[%clk 0:00:08.3]} 53... hxg4+ {[%clk 0:00:07.3]} 54. Kxg4 {[%clk
0:00:09.2]} 54... Ke7 {[%clk 0:00:06.6]} 55. Kf4 {[%clk 0:00:09.1]} 55... Kf7
{[%clk 0:00:03.3]} 56. Ke3 {[%clk 0:00:08]} 56... Kg7 {[%clk 0:00:03.6]} 57. Kd4
{[%clk 0:00:08.9]} 57... Kh6 {[%clk 0:00:04.2]} 58. Kxd5 {[%clk 0:00:09.8]}
58... Kh5 {[%clk 0:00:04.8]} 59. Ke6 {[%clk 0:00:10.7]} 59... Kxh4 {[%clk
0:00:05.4]} 60. Kxf6 {[%clk 0:00:11.4]} 1-0

[Event "*** Titled Tuesday Blitz"]
[Site "Chess.com"]
[Date "2020.05.19"]
[Round "6"]
[White "GoValya"]
[Black "Ceejay271"]
[Result "0-1"]
[WhiteElo "2196"]
[BlackElo "2396"]
[TimeControl "180+1"]
[EndTime "13:10:17 PDT"]
[Termination "Ceejay271 won by checkmate"]

1. d4 {[%clk 0:03:00.9]} 1... Nf6 {[%clk 0:02:58.2]} 2. c4 {[%clk 0:03:00.5]}
2... e6 {[%clk 0:02:58]} 3. g3 {[%clk 0:03:00.6]} 3... d5 {[%clk 0:02:50.8]} 4.
Bg2 {[%clk 0:03:00.5]} 4... Bb4+ {[%clk 0:02:49.6]} 5. Bd2 {[%clk 0:02:59.9]}
5... Be7 {[%clk 0:02:49.3]} 6. Nf3 {[%clk 0:02:59.3]} 6... O-O {[%clk
0:02:50.2]} 7. cxd5 {[%clk 0:02:58.5]} 7... exd5 {[%clk 0:02:48.7]} 8. O-O
{[%clk 0:02:58.5]} 8... c6 {[%clk 0:02:47.8]} 9. Nc3 {[%clk 0:02:57.4]} 9... Re8
{[%clk 0:02:46.1]} 10. Bf4 {[%clk 0:02:57.3]} 10... Bf5 {[%clk 0:02:45.1]} 11.
Ne5 {[%clk 0:02:57.3]} 11... Nbd7 {[%clk 0:02:42.8]} 12. Rc1 {[%clk 0:02:52.1]}
12... Nxe5 {[%clk 0:02:41]} 13. dxe5 {[%clk 0:02:51.9]} 13... Nd7 {[%clk
0:02:38.2]} 14. e4 {[%clk 0:02:52]} 14... dxe4 {[%clk 0:02:32.4]} 15. Nxe4
{[%clk 0:02:51.8]} 15... Bxe4 {[%clk 0:02:31.6]} 16. Bxe4 {[%clk 0:02:51]} 16...
Bf8 {[%clk 0:02:27.2]} 17. Qb3 {[%clk 0:02:34.1]} 17... Nc5 {[%clk 0:02:13.9]}
18. Qc2 {[%clk 0:02:21.7]} 18... Nxe4 {[%clk 0:02:10.8]} 19. Qxe4 {[%clk
0:02:21.4]} 19... Qa5 {[%clk 0:02:11.2]} 20. Rfd1 {[%clk 0:02:19.1]} 20... Rad8
{[%clk 0:01:58]} 21. Rxd8 {[%clk 0:02:17.9]} 21... Rxd8 {[%clk 0:01:57.3]} 22.
e6 {[%clk 0:02:16.6]} 22... Qd5 {[%clk 0:01:55.5]} 23. exf7+ {[%clk 0:02:15.6]}
23... Qxf7 {[%clk 0:01:54.2]} 24. Re1 {[%clk 0:02:10.5]} 24... Qxa2 {[%clk
0:01:52.3]} 25. Bc7 {[%clk 0:02:01.2]} 25... Rc8 {[%clk 0:01:47.6]} 26. Be5
{[%clk 0:01:58.5]} 26... Qe6 {[%clk 0:01:43]} 27. Qd4 {[%clk 0:01:55.1]} 27...
Re8 {[%clk 0:01:41.7]} 28. Qxa7 {[%clk 0:01:50.8]} 28... Qd5 {[%clk 0:01:13.2]}
29. Bc3 {[%clk 0:01:27.4]} 29... Rxe1+ {[%clk 0:01:11.2]} 30. Bxe1 {[%clk
0:01:27.2]} 30... Qd1 {[%clk 0:01:00.5]} 31. Qe3 {[%clk 0:01:26.8]} 31... h5
{[%clk 0:00:50.9]} 32. Qe6+ {[%clk 0:01:24.8]} 32... Kh8 {[%clk 0:00:47.8]} 33.
Qe8 {[%clk 0:01:21.2]} 33... Kh7 {[%clk 0:00:46.6]} 34. Kg2 {[%clk 0:01:15.9]}
34... Qd5+ {[%clk 0:00:44.2]} 35. f3 {[%clk 0:01:16]} 35... Bc5 {[%clk
0:00:40.1]} 36. Bc3 {[%clk 0:01:07.4]} 36... Qf5 {[%clk 0:00:24.5]} 37. Qe2
{[%clk 0:00:52]} 37... b5 {[%clk 0:00:19.3]} 38. h4 {[%clk 0:00:51.6]} 38... b4
{[%clk 0:00:16.9]} 39. Be5 {[%clk 0:00:49.9]} 39... Qe6 {[%clk 0:00:16]} 40.
Qe4+ {[%clk 0:00:49.2]} 40... g6 {[%clk 0:00:16]} 41. f4 {[%clk 0:00:48.4]}
41... Kg8 {[%clk 0:00:12.4]} 42. Qd3 {[%clk 0:00:43.4]} 42... Kf7 {[%clk
0:00:11.7]} 43. Qd8 {[%clk 0:00:41.6]} 43... Qd5+ {[%clk 0:00:12]} 44. Qxd5+
{[%clk 0:00:39.9]} 44... cxd5 {[%clk 0:00:12.9]} 45. Kf3 {[%clk 0:00:40.8]}
45... Ke6 {[%clk 0:00:13.6]} 46. Ke2 {[%clk 0:00:39.6]} 46... Kf5 {[%clk
0:00:13.4]} 47. Kf3 {[%clk 0:00:38.5]} 47... Bg1 {[%clk 0:00:11.8]} 48. b3
{[%clk 0:00:36.4]} 48... d4 {[%clk 0:00:09.8]} 49. Ke2 {[%clk 0:00:33.1]} 49...
Be3 {[%clk 0:00:08.9]} 50. Kd3 {[%clk 0:00:32.8]} 50... Bf2 {[%clk 0:00:09.3]}
51. Bxd4 {[%clk 0:00:31.5]} 51... Bxg3 {[%clk 0:00:10.2]} 52. Kc4 {[%clk
0:00:30.6]} 52... Bxh4 {[%clk 0:00:09.6]} 53. Be5 {[%clk 0:00:29.9]} 53... Bg3
{[%clk 0:00:10]} 54. Kxb4 {[%clk 0:00:30]} 54... h4 {[%clk 0:00:10.9]} 55. Bd4
{[%clk 0:00:25.5]} 55... h3 {[%clk 0:00:11.8]} 56. Bg1 {[%clk 0:00:25]} 56... h2
{[%clk 0:00:12.7]} 57. Bxh2 {[%clk 0:00:24.2]} 57... Bxh2 {[%clk 0:00:13.6]} 58.
Kc4 {[%clk 0:00:24.9]} 58... Bxf4 {[%clk 0:00:14.4]} 59. b4 {[%clk 0:00:25.3]}
59... g5 {[%clk 0:00:15.1]} 60. Kd3 {[%clk 0:00:25.2]} 60... g4 {[%clk 0:00:16]}
61. Ke2 {[%clk 0:00:25.5]} 61... g3 {[%clk 0:00:16.9]} 62. Kf3 {[%clk
0:00:25.6]} 62... Kg5 {[%clk 0:00:17.2]} 63. b5 {[%clk 0:00:25.4]} 63... Bb8
{[%clk 0:00:14.4]} 64. b6 {[%clk 0:00:24.9]} 64... Kh4 {[%clk 0:00:15]} 65. Kg2
{[%clk 0:00:24]} 65... Kg4 {[%clk 0:00:15.2]} 66. b7 {[%clk 0:00:24.2]} 66...
Kh4 {[%clk 0:00:14.7]} 67. Kh1 {[%clk 0:00:22.6]} 67... Kh3 {[%clk 0:00:15.1]}
68. Kg1 {[%clk 0:00:21.4]} 68... Ba7+ {[%clk 0:00:15.7]} 69. Kh1 {[%clk
0:00:21]} 69... g2# {[%clk 0:00:16.6]} 0-1

[Event "*** Titled Tuesday Blitz"]
[Site "Chess.com"]
[Date "2020.05.19"]
[Round "6"]
[White "Gloomy_Wanderer"]
[Black "csati17"]
[Result "1/2-1/2"]
[WhiteElo "2755"]
[BlackElo "2572"]
[TimeControl "180+1"]
[EndTime "13:10:19 PDT"]
[Termination "Game drawn by repetition"]

1. d4 {[%clk 0:03:00.9]} 1... Nf6 {[%clk 0:02:59.3]} 2. Nf3 {[%clk 0:03:00.6]}
2... e6 {[%clk 0:02:58.6]} 3. c4 {[%clk 0:03:00.4]} 3... Bb4+ {[%clk 0:02:58.8]}
4. Bd2 {[%clk 0:03:00.2]} 4... Qe7 {[%clk 0:02:59.2]} 5. g3 {[%clk 0:03:00.2]}
5... O-O {[%clk 0:02:58.2]} 6. Bg2 {[%clk 0:03:00.2]} 6... Bxd2+ {[%clk
0:02:58.6]} 7. Qxd2 {[%clk 0:03:00.1]} 7... Nc6 {[%clk 0:02:58.9]} 8. Nc3 {[%clk
0:02:58.9]} 8... e5 {[%clk 0:02:58.9]} 9. O-O {[%clk 0:02:57.2]} 9... d6 {[%clk
0:02:57.2]} 10. e3 {[%clk 0:02:56.2]} 10... Bg4 {[%clk 0:02:48.5]} 11. h3 {[%clk
0:02:55.6]} 11... Bxf3 {[%clk 0:02:38.3]} 12. Bxf3 {[%clk 0:02:56.5]} 12... Rad8
{[%clk 0:02:32.6]} 13. Rad1 {[%clk 0:02:50.7]} 13... h5 {[%clk 0:02:18.8]} 14.
h4 {[%clk 0:02:44]} 14... g6 {[%clk 0:02:16.8]} 15. Qc2 {[%clk 0:02:37.4]} 15...
Kg7 {[%clk 0:02:12.3]} 16. a3 {[%clk 0:02:32.1]} 16... Nb8 {[%clk 0:01:50.2]}
17. b4 {[%clk 0:02:12.1]} 17... c6 {[%clk 0:01:41.5]} 18. d5 {[%clk 0:01:37.4]}
18... Rc8 {[%clk 0:01:11.4]} 19. dxc6 {[%clk 0:01:29.6]} 19... bxc6 {[%clk
0:01:12.3]} 20. Qb3 {[%clk 0:01:28.5]} 20... Rfd8 {[%clk 0:01:11.1]} 21. Rd2
{[%clk 0:01:28.3]} 21... Nbd7 {[%clk 0:00:35.7]} 22. Rfd1 {[%clk 0:01:22.9]}
22... Nb6 {[%clk 0:00:35.9]} 23. Na4 {[%clk 0:01:06.5]} 23... Qe6 {[%clk
0:00:25.4]} 24. Nxb6 {[%clk 0:01:06]} 24... axb6 {[%clk 0:00:26.3]} 25. a4
{[%clk 0:01:06.4]} 25... e4 {[%clk 0:00:25.5]} 26. Bg2 {[%clk 0:00:56.3]} 26...
Qe5 {[%clk 0:00:24.5]} 27. Qb2 {[%clk 0:00:51.3]} 27... Qe6 {[%clk 0:00:20.2]}
28. Bf1 {[%clk 0:00:46.2]} 28... Rc7 {[%clk 0:00:17.2]} 29. a5 {[%clk
0:00:44.5]} 29... Rb7 {[%clk 0:00:14.9]} 30. a6 {[%clk 0:00:43.8]} 30... Ra7
{[%clk 0:00:15.2]} 31. b5 {[%clk 0:00:44.2]} 31... c5 {[%clk 0:00:15.3]} 32. Qc3
{[%clk 0:00:38.5]} 32... Kf8 {[%clk 0:00:15.3]} 33. Bg2 {[%clk 0:00:34.5]} 33...
Ke7 {[%clk 0:00:15.4]} 34. Kh2 {[%clk 0:00:33.5]} 34... Ng4+ {[%clk 0:00:14.3]}
35. Kg1 {[%clk 0:00:34]} 35... Nf6 {[%clk 0:00:14.9]} 36. Rc2 {[%clk 0:00:31.1]}
36... d5 {[%clk 0:00:13]} 37. cxd5 {[%clk 0:00:30.5]} 37... Rxd5 {[%clk
0:00:13.9]} 38. Rcd2 {[%clk 0:00:29.9]} 38... Rxd2 {[%clk 0:00:12.6]} 39. Rxd2
{[%clk 0:00:28.9]} 39... Rd7 {[%clk 0:00:12.4]} 40. Bf1 {[%clk 0:00:26.1]} 40...
Nd5 {[%clk 0:00:07.5]} 41. Qb3 {[%clk 0:00:20.5]} 41... Nc7 {[%clk 0:00:06.3]}
42. Bc4 {[%clk 0:00:18.3]} 42... Qg4 {[%clk 0:00:04.8]} 43. Qc3 {[%clk
0:00:14.7]} 43... Rxd2 {[%clk 0:00:04.4]} 44. Qxd2 {[%clk 0:00:15.6]} 44... Qd7
{[%clk 0:00:03.9]} 45. Qa2 {[%clk 0:00:14.9]} 45... Qd1+ {[%clk 0:00:04.1]} 46.
Kh2 {[%clk 0:00:15.1]} 46... Qf3 {[%clk 0:00:03.7]} 47. a7 {[%clk 0:00:13.5]}
47... Kd6 {[%clk 0:00:02.4]} 48. Bd5 {[%clk 0:00:12.5]} 48... Ke5 {[%clk
0:00:02.2]} 49. a8=Q {[%clk 0:00:11.8]} 49... Nxa8 {[%clk 0:00:03]} 50. Bxa8
{[%clk 0:00:12.2]} 50... Qd1 {[%clk 0:00:03.1]} 51. Bc6 {[%clk 0:00:10.1]} 51...
Qf3 {[%clk 0:00:03]} 52. Kg1 {[%clk 0:00:09.7]} 52... Kf6 {[%clk 0:00:03.7]} 53.
Qd2 {[%clk 0:00:09]} 53... Kg7 {[%clk 0:00:03.8]} 54. Qc3+ {[%clk 0:00:08.3]}
54... Kh6 {[%clk 0:00:04.1]} 55. Qd2 {[%clk 0:00:08.9]} 55... Kg7 {[%clk
0:00:04.2]} 56. Bd5 {[%clk 0:00:09.1]} 56... g5 {[%clk 0:00:03.8]} 57. hxg5
{[%clk 0:00:08.8]} 57... h4 {[%clk 0:00:04.3]} 58. gxh4 {[%clk 0:00:08.8]} 58...
Qg4+ {[%clk 0:00:04.7]} 59. Kf1 {[%clk 0:00:09.2]} 59... Qh3+ {[%clk 0:00:05.2]}
60. Ke2 {[%clk 0:00:05.7]} 60... Qf3+ {[%clk 0:00:05.3]} 61. Ke1 {[%clk
0:00:05.5]} 61... Qh1+ {[%clk 0:00:05.9]} 62. Ke2 {[%clk 0:00:05.3]} 62... Qf3+
{[%clk 0:00:06.8]} 63. Kf1 {[%clk 0:00:06.2]} 63... Qh1+ {[%clk 0:00:07.7]} 64.
Ke2 {[%clk 0:00:05.5]} 64... Qf3+ {[%clk 0:00:08.6]} 1/2-1/2

[Event "*** Titled Tuesday Blitz"]
[Site "Chess.com"]
[Date "2020.05.19"]
[Round "6"]
[White "northridgehawk"]
[Black "jeaston1"]
[Result "0-1"]
[WhiteElo "2246"]
[BlackElo "2419"]
[TimeControl "180+1"]
[EndTime "13:10:21 PDT"]
[Termination "jeaston1 won by resignation"]

1. e4 {[%clk 0:03:00.9]} 1... c5 {[%clk 0:02:59.7]} 2. Nf3 {[%clk 0:03:00.5]}
2... Nc6 {[%clk 0:02:59.9]} 3. d4 {[%clk 0:03:01.4]} 3... cxd4 {[%clk
0:03:00.3]} 4. Nxd4 {[%clk 0:03:02.3]} 4... Nf6 {[%clk 0:03:00.5]} 5. Nc3 {[%clk
0:03:02.7]} 5... e5 {[%clk 0:03:00.7]} 6. Ndb5 {[%clk 0:03:02.4]} 6... d6 {[%clk
0:03:01.1]} 7. Nd5 {[%clk 0:03:02.5]} 7... Nxd5 {[%clk 0:03:00.1]} 8. exd5
{[%clk 0:03:03.4]} 8... Ne7 {[%clk 0:03:00.2]} 9. c4 {[%clk 0:03:03.8]} 9... Ng6
{[%clk 0:02:49.1]} 10. Be2 {[%clk 0:03:02.1]} 10... Be7 {[%clk 0:02:46.4]} 11.
O-O {[%clk 0:03:02.4]} 11... O-O {[%clk 0:02:46.1]} 12. Be3 {[%clk 0:03:02.8]}
12... a6 {[%clk 0:02:35.5]} 13. Nc3 {[%clk 0:03:01.9]} 13... f5 {[%clk
0:02:33.6]} 14. f4 {[%clk 0:03:01.3]} 14... exf4 {[%clk 0:02:25.4]} 15. Bxf4
{[%clk 0:03:00.2]} 15... Qb6+ {[%clk 0:01:53.5]} 16. Kh1 {[%clk 0:02:48.2]}
16... Nxf4 {[%clk 0:01:51.6]} 17. Rxf4 {[%clk 0:02:40.8]} 17... Qxb2 {[%clk
0:01:49.9]} 18. Rf3 {[%clk 0:02:08.3]} 18... Bg5 {[%clk 0:01:24.4]} 19. Rb1
{[%clk 0:01:57.2]} 19... Qd2 {[%clk 0:01:23.8]} 20. Qf1 {[%clk 0:01:30.7]} 20...
Qd4 {[%clk 0:01:05.7]} 21. Rd1 {[%clk 0:01:19.4]} 21... Qe5 {[%clk 0:01:03.9]}
22. Qf2 {[%clk 0:01:05.9]} 22... Bd7 {[%clk 0:00:57]} 23. h4 {[%clk 0:00:56.6]}
23... Bh6 {[%clk 0:00:34.8]} 24. c5 {[%clk 0:00:46.2]} 24... Rac8 {[%clk
0:00:22.1]} 25. c6 {[%clk 0:00:30.5]} 25... bxc6 {[%clk 0:00:20.6]} 26. dxc6
{[%clk 0:00:31.4]} 26... Bxc6 {[%clk 0:00:20]} 27. Bc4+ {[%clk 0:00:24.5]} 27...
Kh8 {[%clk 0:00:19.4]} 28. Bd5 {[%clk 0:00:14.1]} 28... Bxd5 {[%clk 0:00:14.5]}
29. Nxd5 {[%clk 0:00:15]} 29... Rc1 {[%clk 0:00:12.4]} 30. Rd3 {[%clk
0:00:12.7]} 30... Rxd1+ {[%clk 0:00:11.4]} 31. Rxd1 {[%clk 0:00:13.6]} 31... f4
{[%clk 0:00:11.3]} 32. Qf3 {[%clk 0:00:12.4]} 32... Re8 {[%clk 0:00:09]} 33. Kh2
{[%clk 0:00:11.4]} 33... Qe2 {[%clk 0:00:08.2]} 34. Rf1 {[%clk 0:00:11.6]} 34...
Qxf3 {[%clk 0:00:08]} 35. Rxf3 {[%clk 0:00:12.5]} 35... Re4 {[%clk 0:00:07.1]}
36. Ra3 {[%clk 0:00:10.6]} 36... f3 {[%clk 0:00:04.7]} 37. Rxa6 {[%clk
0:00:10.3]} 37... g6 {[%clk 0:00:03.8]} 38. gxf3 {[%clk 0:00:10.4]} 38... Rxh4+
{[%clk 0:00:03.7]} 39. Kg3 {[%clk 0:00:10.4]} 39... Rd4 {[%clk 0:00:04.6]} 40.
Rxd6 {[%clk 0:00:09.6]} 40... Bf8 {[%clk 0:00:04.2]} 41. Rd8 {[%clk 0:00:09.3]}
41... Kg7 {[%clk 0:00:04.7]} 42. Rd7+ {[%clk 0:00:09.1]} 42... Kh6 {[%clk
0:00:04.9]} 43. Nf6 {[%clk 0:00:08.4]} 43... Rxd7 {[%clk 0:00:04.7]} 44. Nxd7
{[%clk 0:00:09.3]} 44... Ba3 {[%clk 0:00:04.9]} 45. Nb6 {[%clk 0:00:08.8]} 45...
Kg7 {[%clk 0:00:05.8]} 46. Nc4 {[%clk 0:00:09.4]} 46... Bc5 {[%clk 0:00:05.8]}
47. a4 {[%clk 0:00:08.7]} 47... Kf6 {[%clk 0:00:06.3]} 48. a5 {[%clk 0:00:09]}
48... Ba7 {[%clk 0:00:06.7]} 49. a6 {[%clk 0:00:08.6]} 49... Ke6 {[%clk
0:00:06.6]} 50. Na5 {[%clk 0:00:08.5]} 50... Kd6 {[%clk 0:00:06.1]} 51. Nb3
{[%clk 0:00:08.6]} 51... Kc6 {[%clk 0:00:06.1]} 52. Nd2 {[%clk 0:00:08.9]} 52...
Kb6 {[%clk 0:00:05.6]} 53. Ne4 {[%clk 0:00:09.8]} 53... Kxa6 {[%clk 0:00:06.1]}
54. Ng5 {[%clk 0:00:10.2]} 54... Bb8+ {[%clk 0:00:05.1]} 55. Kg4 {[%clk
0:00:09.4]} 55... h5+ {[%clk 0:00:05.6]} 56. Kh4 {[%clk 0:00:09.5]} 56... Bf4
{[%clk 0:00:05.6]} 57. Ne6 {[%clk 0:00:09.5]} 57... Be5 {[%clk 0:00:05.7]} 58.
Kg5 {[%clk 0:00:09.2]} 58... Bd6 {[%clk 0:00:05.3]} 59. Kxg6 {[%clk 0:00:09.4]}
59... h4 {[%clk 0:00:05.1]} 60. Ng5 {[%clk 0:00:07.7]} 60... Be7 {[%clk
0:00:05.4]} 61. Nh3 {[%clk 0:00:08.6]} 61... Bd8 {[%clk 0:00:05.6]} 62. Kh5
{[%clk 0:00:09.3]} 62... Kb6 {[%clk 0:00:06]} 63. Kg4 {[%clk 0:00:10.2]} 63...
Kc6 {[%clk 0:00:06.2]} 64. f4 {[%clk 0:00:09.5]} 64... Kd5 {[%clk 0:00:06.5]}
65. f5 {[%clk 0:00:10.4]} 65... Ke5 {[%clk 0:00:06.5]} 66. Nf2 {[%clk
0:00:09.4]} 66... Kd4 {[%clk 0:00:05.3]} 67. Kh5 {[%clk 0:00:08.1]} 67... Ke3
{[%clk 0:00:05]} 68. Kg6 {[%clk 0:00:08.1]} 68... Kxf2 {[%clk 0:00:04.7]} 0-1

[Event "*** Titled Tuesday Blitz"]
[Site "Chess.com"]
[Date "2020.05.19"]
[Round "6"]
[White "PotapovaM"]
[Black "PauloCesarCosta_sad"]
[Result "1-0"]
[WhiteElo "2420"]
[BlackElo "2203"]
[TimeControl "180+1"]
[EndTime "13:10:21 PDT"]
[Termination "PotapovaM won on time"]

1. d4 {[%clk 0:03:00.9]} 1... d5 {[%clk 0:02:59.8]} 2. c4 {[%clk 0:03:01.3]}
2... c6 {[%clk 0:02:59.2]} 3. Nf3 {[%clk 0:02:59.1]} 3... e6 {[%clk 0:02:59.3]}
4. g3 {[%clk 0:02:58.7]} 4... dxc4 {[%clk 0:02:56.2]} 5. Bg2 {[%clk 0:02:57.8]}
5... b5 {[%clk 0:02:42]} 6. Ne5 {[%clk 0:02:57.8]} 6... Bb4+ {[%clk 0:02:17.5]}
7. Nc3 {[%clk 0:02:56.9]} 7... Ne7 {[%clk 0:02:09.9]} 8. a4 {[%clk 0:02:52.5]}
8... Nd5 {[%clk 0:02:00.3]} 9. O-O {[%clk 0:02:51.4]} 9... Nxc3 {[%clk
0:01:50.1]} 10. bxc3 {[%clk 0:02:51]} 10... Bxc3 {[%clk 0:01:51]} 11. Ba3 {[%clk
0:02:40.6]} 11... Bxa1 {[%clk 0:01:39]} 12. Qxa1 {[%clk 0:02:36.4]} 12... a6
{[%clk 0:01:39.1]} 13. Nxc6 {[%clk 0:02:01.4]} 13... Nxc6 {[%clk 0:01:39.1]} 14.
Bxc6+ {[%clk 0:02:02.3]} 14... Bd7 {[%clk 0:01:40]} 15. Bxa8 {[%clk 0:02:01.5]}
15... Qxa8 {[%clk 0:01:38.5]} 16. Qb1 {[%clk 0:01:52.7]} 16... Bc6 {[%clk
0:01:17.2]} 17. Qb4 {[%clk 0:01:51.6]} 17... Qd8 {[%clk 0:01:09.7]} 18. axb5
{[%clk 0:01:48.2]} 18... axb5 {[%clk 0:01:08.2]} 19. Qc5 {[%clk 0:01:42.3]}
19... Qd7 {[%clk 0:01:01.5]} 20. Bb4 {[%clk 0:01:42.3]} 20... f6 {[%clk
0:00:55.8]} 21. Ra1 {[%clk 0:01:42.7]} 21... Bb7 {[%clk 0:00:45.5]} 22. Ra7
{[%clk 0:01:20.3]} 22... c3 {[%clk 0:00:41.2]} 23. Bxc3 {[%clk 0:01:14.4]} 23...
Qc6 {[%clk 0:00:20.9]} 24. Qxc6+ {[%clk 0:01:05.1]} 24... Bxc6 {[%clk
0:00:21.1]} 25. Rxg7 {[%clk 0:00:59]} 25... Bd5 {[%clk 0:00:16.3]} 26. Bb4
{[%clk 0:00:54.8]} 26... f5 {[%clk 0:00:13.6]} 27. Rc7 {[%clk 0:00:38.1]} 27...
Rg8 {[%clk 0:00:13.2]} 28. Rxh7 {[%clk 0:00:33.9]} 28... Kd8 {[%clk 0:00:12.8]}
29. Ra7 {[%clk 0:00:31.6]} 29... Ke8 {[%clk 0:00:11.2]} 30. Rc7 {[%clk
0:00:30.2]} 30... Rg4 {[%clk 0:00:10.2]} 31. e3 {[%clk 0:00:28]} 31... Kd8
{[%clk 0:00:09.9]} 32. Rc5 {[%clk 0:00:27.5]} 32... Kd7 {[%clk 0:00:09.1]} 33.
Rxb5 {[%clk 0:00:27.7]} 33... Kc6 {[%clk 0:00:08.5]} 34. Rc5+ {[%clk 0:00:27.7]}
34... Kd7 {[%clk 0:00:08.3]} 35. Kf1 {[%clk 0:00:26.4]} 35... Rg8 {[%clk
0:00:07.8]} 36. Ke2 {[%clk 0:00:24.3]} 36... Rh8 {[%clk 0:00:08.2]} 37. h4
{[%clk 0:00:23.6]} 37... Ra8 {[%clk 0:00:08.7]} 38. Bd2 {[%clk 0:00:22.8]} 38...
Ra2 {[%clk 0:00:08.9]} 39. Ra5 {[%clk 0:00:21.1]} 39... Bf3+ {[%clk 0:00:07.1]}
40. Kxf3 {[%clk 0:00:20.3]} 40... Rxd2 {[%clk 0:00:08]} 41. Ra6 {[%clk
0:00:19.9]} 41... Rb2 {[%clk 0:00:06.5]} 42. h5 {[%clk 0:00:19.1]} 42... Rb8
{[%clk 0:00:06.8]} 43. h6 {[%clk 0:00:18.5]} 43... Rh8 {[%clk 0:00:07.7]} 44. h7
{[%clk 0:00:18.8]} 44... Ke7 {[%clk 0:00:05.1]} 45. Kf4 {[%clk 0:00:18.5]} 45...
Kf6 {[%clk 0:00:05.1]} 46. Ra7 {[%clk 0:00:16.9]} 46... Kg6 {[%clk 0:00:03.6]}
47. Ke5 {[%clk 0:00:15.9]} 47... Rxh7 {[%clk 0:00:02.2]} 48. Rxh7 {[%clk
0:00:15.3]} 48... Kxh7 {[%clk 0:00:03.1]} 49. Kxe6 {[%clk 0:00:15.8]} 49... Kg7
{[%clk 0:00:04]} 50. Kxf5 {[%clk 0:00:15.7]} 50... Kf7 {[%clk 0:00:04.9]} 51.
Ke5 {[%clk 0:00:16]} 51... Ke7 {[%clk 0:00:05.8]} 52. d5 {[%clk 0:00:16.9]}
52... Kf7 {[%clk 0:00:06.7]} 53. e4 {[%clk 0:00:17.8]} 53... Ke7 {[%clk
0:00:07.6]} 54. f4 {[%clk 0:00:18.7]} 54... Kd7 {[%clk 0:00:08.5]} 55. g4 {[%clk
0:00:19.6]} 55... Ke7 {[%clk 0:00:09]} 56. g5 {[%clk 0:00:20.5]} 56... Kf7
{[%clk 0:00:09.9]} 57. f5 {[%clk 0:00:21.4]} 57... Ke7 {[%clk 0:00:10.8]} 58. g6
{[%clk 0:00:21.6]} 58... Kf8 {[%clk 0:00:10.7]} 59. Kf6 {[%clk 0:00:21.9]} 59...
Kg8 {[%clk 0:00:11.6]} 60. g7 {[%clk 0:00:21.4]} 60... Kh7 {[%clk 0:00:10.6]}
61. Kf7 {[%clk 0:00:21.5]} 61... Kh6 {[%clk 0:00:10.7]} 62. g8=Q {[%clk
0:00:21.7]} 62... Kh5 {[%clk 0:00:11]} 63. Qg6+ {[%clk 0:00:21.8]} 63... Kh4
{[%clk 0:00:10.9]} 64. d6 {[%clk 0:00:22.1]} 64... Kh3 {[%clk 0:00:11.2]} 65. d7
{[%clk 0:00:22.7]} 65... Kh4 {[%clk 0:00:12.1]} 66. d8=Q+ {[%clk 0:00:22.8]} 1-0